[Event "Germany Countries-chT Youth 2022"]
[Site "Wiesbaden"]
[Date "2022.10.03"]
[Round "6"]
[White "Stork, Oliver"]
[Black "Kolb, Tobias"]
[Result "1/2-1/2"]
[ECO "D35"]
[WhiteElo "2338"]
[BlackElo "2358"]
[Annotator "TA"]
[PlyCount "218"]
[EventDate "2022.09.28"]
[EventType "team-tourn"]
[EventRounds "7"]
[EventCountry "GER"]
[SourceTitle "playchess.com"]
[Source "ChessBase"]
[SourceQuality "1"]
[TimeControl "40/5400+30:1800+30"]

{[%evp 48,218,85,77,64,16,12,0,0,13,18,18,6,1,27,27,27,27,27,27,27,27,27,27,20,20,20,20,20,18,19,19,20,20,20,16,16,16,20,9,9,9,9,9,9,0,9,9,9,9,9,9,9,9,9,9,20,9,9,9,9,9,20,20,20,20,20,20,20,20,20,16,20,0,20,16,20,20,20,16,16,16,20,16,20,0,20,20,20,20,20,16,27,8,8,0,27,27,27,20,27,27,27,20,27,0,27,27,27,27,27,0,27,27,27,27,27,0,27,27,27,27,27,27,27,27,27,27,27,0,27,0,27,27,27,27,27,0,27,8,8,8,8,8,8,0,0,0,8,8,8,0,0,0,8,8,8,8,8,0,0,0,0,0,0,0,0,0,0,0,0,0,0]} 1. d4 {[%emt 0:00:03]} d5 {[%emt 0:00:07]} 2. c4 {[%emt 0:00:05]} e6 {[%emt 0:00:03]} 3. Nc3 {[%emt 0:00:05]} Nf6 {[%emt 0:00:04]} 4. cxd5 {[%emt 0:00:13]} exd5 {[%emt 0:00:04]} 5. Bg5 {[%emt 0:00:07]} Be7 {[%emt 0:00:03]} 6. e3 {[%emt 0:00:08]} O-O {[%emt 0:00:17]} 7. Bd3 {[%emt 0:00:15]} h6 {[%emt 0:00:18]} 8. Bh4 {[%emt 0:00:11]} Re8 {[%emt 0:00:23]} 9. Nge2 {[%emt 0:00:40]} c6 {[%emt 0:01:14]} 10. O-O {[%emt 0:01:37]} Nbd7 {[%emt 0:01:53]} 11. Rb1 {[%emt 0:05:54]} a5 {[%emt 0:14:57]} 12. Qc2 {[%emt 0:11:16]} Nh5 {[%emt 0:00:46]} 13. Bxe7 {[%emt 0:00:10]} Qxe7 {[%emt 0:00:03]} 14. Na4 {[%emt 0:01:46]} Nhf6 {[%emt 0:04:51]} 15. a3 {[%emt 0:26:47]} Qd6 {[%emt 0:07:10]} 16. Ng3 {[%emt 0:12:39]} h5 {[%emt 0:23:08]} 17. Rfc1 {[%emt 0:01:55]} Ng4 {[%emt 0:05:15]} 18. Nf1 {[%emt 0:01:44]} g6 {[%emt 0:05:29]} 19. h3 {[%emt 0:02:35]} Nh6 {[%emt 0:01:01]} 20. b4 {[%emt 0:05:42]} axb4 {[%emt 0:00:04]} 21. axb4 {[%emt 0:01:42]} b5 {[%emt 0:00:23]} 22. Nc5 {[%emt 0:00:05]} Nb6 {[%emt 0:00:03]} 23. e4 {[%emt 0:01:17]} dxe4 {[%emt 0:04:03]} 24. Nxe4 {[%emt 0:02:05]} Qxd4 {[%emt 0:00:08]} 25. Qxc6 {[%emt 0:05:30]} Re6 {[%emt 0:00:03]} 26. Qc3 {[%emt 0:00:43]} ({But not} 26. Qxb5 $2 Ba6 27. Qc5 Qxd3 $19) (26. Qc2 $14 {deserves consideration.}) 26... Nf5 $11 {[%emt 0:07:35]} (26... Rxe4 $2 27. Bxe4 Qxc3 28. Rxc3 $18) 27. Nc5 {[%emt 0:07:29]} Qxc3 {[%emt 0:01:30]} 28. Rxc3 {[%emt 0:00:01]} Nd5 {[%emt 0:01:08]} 29. Rcc1 {[%emt 0:00:32]} Rd6 {[%emt 0:03:16]} 30. Bxb5 {[%emt 0:02:58]} Rb8 {[%emt 0:01:59]} (30... Rb6 $5 {[%cal Rb6b5]} 31. Bc4 Nxb4 $11) 31. Bc4 {[%emt 0:01:01]} Nxb4 {[%emt 0:04:07]} 32. Nd3 {[%emt 0:01:33]} Rdb6 {[%emt 0:04:19]} 33. Rxb4 {[%emt 0:03:39]} Rxb4 {[%emt 0:00:04]} 34. Nxb4 {[%emt 0:00:04]} Rxb4 {[%emt 0:00:03]} 35. Bxf7+ {[%emt 0:00:32]} Kxf7 {[%emt 0:00:04]} 36. Rxc8 {[%emt 0:00:05]} Rb1 {[%emt 0:02:20]} 37. g3 {[%emt 0:01:20]} h4 {[%emt 0:01:42]} 38. Rc3 {[%emt 0:02:53]} hxg3 {[%emt 0:00:28]} 39. fxg3 {[%emt 0:00:06]} Rb2 {[%emt 0:01:25]} 40. Rf3 {[%emt 0:00:30]} Kg7 {[%emt 0:01:53]} 41. Rf2 {[%emt 0:04:52]} Rb3 {[%emt 0:03:03]} 42. Kh2 {[%emt 0:06:30]} Ra3 {[%emt 0:01:43]} 43. Kg2 {[%emt 0:07:46]} Ne3+ {[%emt 0:00:16]} 44. Nxe3 {[%emt 0:00:05]} Rxe3 {[%emt 0:00:02]} 45. Rf3 {[%emt 0:00:14]} Re2+ {[%emt 0:00:06]} 46. Rf2 {[%emt 0:00:03]} Re3 {[%emt 0:00:02]} 47. Rf4 {[%emt 0:01:19]} Ra3 {[%emt 0:00:17]} 48. Kf2 {[%emt 0:00:27]} Rb3 {[%emt 0:00:56]} 49. Re4 {[%emt 0:00:15]} Kf6 {[%emt 0:01:57]} 50. Re3 {[%emt 0:01:52]} Rb4 {[%emt 0:00:21]} 51. Kf3 {[%emt 0:01:22]} Kg5 {[%emt 0:01:41]} 52. Re5+ {[%emt 0:00:25]} Kf6 {[%emt 0:00:04]} 53. Re4 {[%emt 0:00:10]} Rb3+ {[%emt 0:00:03]} 54. Kf4 {[%emt 0:00:13]} Rb5 {[%emt 0:00:10]} 55. h4 {[%emt 0:04:02]} Rf5+ {[%emt 0:00:43]} 56. Kg4 {[%emt 0:00:28]} Ra5 {[%emt 0:00:04]} 57. Rb4 {[%emt 0:00:23]} Rc5 {[%emt 0:00:34]} 58. Rb6+ {[%emt 0:00:31]} Kg7 {[%emt 0:00:04]} 59. Rb7+ {[%emt 0:00:13]} Kf6 {[%emt 0:00:25]} 60. Rb6+ {[%emt 0:00:15]} Kg7 {[%emt 0:00:03]} 61. Re6 {[%emt 0:01:35]} Kf7 {[%emt 0:00:34]} 62. Rd6 {[%emt 0:00:17]} Rc4+ {[%emt 0:01:24]} 63. Kg5 {[%emt 0:00:30]} Rc5+ {[%emt 0:00:03]} 64. Kf4 {[%emt 0:00:06]} Kg7 {[%emt 0:02:03]} 65. Rd7+ {[%emt 0:02:11]} Kf6 {[%emt 0:00:10]} 66. Rd6+ {[%emt 0:00:03]} Kg7 {[%emt 0:00:03]} 67. Re6 {[%emt 0:00:25]} Rf5+ {[%emt 0:00:03]} 68. Ke4 {[%emt 0:01:09]} Ra5 {[%emt 0:01:40]} 69. Rd6 {[%emt 0:02:16]} Ra3 {[%emt 0:01:27]} 70. Rd7+ {[%emt 0:00:24]} Kf6 {[%emt 0:00:31]} 71. Rd6+ {[%emt 0:00:04]} Kg7 {[%emt 0:00:04]} 72. g4 {[%emt 0:01:28]} Ra5 {[%emt 0:07:42]} 73. Rd5 {[%emt 0:00:06]} Ra4+ {[%emt 0:00:20]} 74. Rd4 {[%emt 0:00:04]} Ra5 {[%emt 0:00:14]} 75. Rd7+ {[%emt 0:00:09]} Kf6 {[%emt 0:00:32]} 76. Rd6+ {[%emt 0:00:21]} Kf7 {[%emt 0:00:49]} 77. Kf4 {[%emt 0:03:18]} Rb5 {[%emt 0:00:38]} 78. Rd7+ $1 {[%emt 0:00:55]} Kf6 {[%emt 0:00:29]} 79. Rd6+ {[%emt 0:01:07]} Kf7 {[%emt 0:00:17]} 80. Rc6 {[%emt 0:00:13]} Ra5 {[%emt 0:00:44]} 81. Rc7+ {[%emt 0:01:21]} Kf6 {[%emt 0:00:04]} 82. Rc6+ {[%emt 0:02:07]} Kf7 {[%emt 0:00:04]} 83. Rb6 {[%emt 0:00:03]} Rc5 {[%emt 0:00:12]} 84. Ra6 {[%emt 0:00:06]} Rb5 {[%emt 0:00:03]} 85. Ra7+ {[%emt 0:00:06]} Kf6 {[%emt 0:00:02]} 86. g5+ {[%emt 0:02:10]} Ke6 {[%emt 0:00:03]} 87. Ra6+ {[%emt 0:00:10]} Kf7 {[%emt 0:00:03]} 88. Ra7+ {[%emt 0:00:04]} Ke6 {[%emt 0:00:03]} 89. Ra6+ {[%emt 0:00:54]} Kf7 {[%emt 0:00:03]} 90. Rf6+ {[%emt 0:00:03]} Kg7 {[%emt 0:00:02]} 91. Re6 {[%emt 0:00:28]} Kf7 {[%emt 0:01:36]} 92. Rf6+ {[%emt 0:00:38]} Kg7 {[%emt 0:00:04]} 93. Rd6 {[%emt 0:00:04]} Rb4+ {[%emt 0:02:43]} 94. Ke5 {[%emt 0:00:07]} Rxh4 {[%emt 0:00:45]} 95. Rd7+ $1 {[%emt 0:00:05]} Kg8 {[%emt 0:00:23]} 96. Rd8+ {[%emt 0:00:10]} Kf7 {[%emt 0:00:11]} 97. Rd7+ {[%emt 0:00:04]} Kg8 $1 {[%emt 0:00:04]} 98. Kf6 {[%emt 0:00:03]} (98. Rd4 $5 {[%cal Rd4h4]} Rh1 99. Kf6 $11) 98... Ra4 {[%emt 0:01:42]} 99. Rd8+ {[%emt 0:00:34]} Kh7 {[%emt 0:00:03]} 100. Rd7+ {[%emt 0:00:16]} Kg8 {[%emt 0:00:03]} 101. Re7 {[%emt 0:00:05]} Ra8 {[%emt 0:01:12]} 102. Rg7+ {[%emt 0:00:49]} Kh8 $1 {[%emt 0:00:12]} 103. Rxg6 {[%emt 0:01:26]} Ra6+ {[%emt 0:00:46]} 104. Kf5 {[%emt 0:00:07]} Ra5+ {[%emt 0:00:28]} 105. Kg4 {[%emt 0:00:07]} Ra1 {[%emt 0:00:53]} 106. Rb6 {[%emt 0:00:10]} Kg7 {[%emt 0:00:10]} 107. g6 {[%emt 0:00:40]} Rg1+ {[%emt 0:00:08]} 108. Kf4 {[%emt 0:00:04]} Rxg6 {[%emt 0:00:04]} 109. Rxg6+ {[%emt 0:00:04]} Kxg6 1/2-1/2

[Event "Germany Countries-chT Youth 2022"]
[Site "Wiesbaden"]
[Date "2022.10.03"]
[Round "6"]
[White "Schneider, Jana"]
[Black "Laux, Dominik"]
[Result "0-1"]
[ECO "B57"]
[WhiteElo "2331"]
[BlackElo "2273"]
[Annotator "TA"]
[PlyCount "130"]
[EventDate "2022.09.28"]
[EventType "team-tourn"]
[EventRounds "7"]
[EventCountry "GER"]
[SourceTitle "playchess.com"]
[Source "ChessBase"]
[SourceQuality "1"]
[TimeControl "40/5400+30:1800+30"]

{[%evp 16,130,15,8,17,12,23,18,68,86,68,14,11,0,0,-10,-20,-37,-15,-18,-27,-43,-20,-23,-28,-50,-49,-50,-40,-92,-85,-178,-183,-197,-183,-278,-143,-171,-171,-246,-242,-290,-286,-285,-285,-283,-283,-283,-283,-577,-290,-276,-273,-1737,-1726,-1617,-1340,-2862,-2825,-2825,-2596,-2991,-2274,-3045,-1584,-29953,-29956,-29961,-1354,-4723,-4893,-2393,-1754,-29947,-2324,-1637,0,-29956,-1379,-1094,-760,-1824,-1691,-29961,-29964,-29961,-29963,-29967,-29967,-29965,0,-29963,0,-29967,-29968,-29965,-29971,-29970,-29971,-29977,-29977,-29979,-29980,-29980,-29981,-29981,-29982,-29982,-29982,-29984,-29985,-29985,-29983,-29983,-29984,-29984,-29985]} 1. e4 {[%emt 0:00:04]} c5 {[%emt 0:00:18]} 2. Nf3 {[%emt 0:00:09]} Nc6 {[%emt 0:00:37]} 3. d4 {[%emt 0:00:10]} cxd4 {[%emt 0:00:06]} 4. Nxd4 {[%emt 0:00:04]} Nf6 {[%emt 0:00:09]} 5. Nc3 {[%emt 0:00:09]} d6 {[%emt 0:00:38]} 6. Bc4 {[%emt 0:00:11]} Qb6 {[%emt 0:01:02]} 7. Nxc6 {[%emt 0:00:18]} bxc6 {[%emt 0:00:05]} 8. Qe2 {[%emt 0:00:13]} g6 {[%emt 0:02:30]} 9. O-O {[%emt 0:10:22]} Qc7 {[%emt 0:00:03] B57: Classical Sicilian: Sozin with 6...Qb6.} 10. f4 {[%emt 0:06:04][%cal Bf2f4,Bf4e5][%mdl 32]} Bg7 {[%emt 0:00:05]} 11. e5 {[%emt 0:03:19] [#]} dxe5 $146 {[%emt 0:06:47]} (11... Nd5 $11) ({Predecessor:} 11... Ng4 12. h3 Nh6 13. exd6 Qxd6 14. Be3 O-O 15. Rad1 Qb4 16. Bb3 Nf5 17. a3 Qa5 {0-1 (32) Faulks,N-Arnett,D (2355) Bermuda 1996}) 12. fxe5 $14 {[%emt 0:01:20]} Nd5 {[%emt 0:00:09] [#]} 13. Kh1 {[%emt 0:06:18]} ({But not} 13. Nxd5 cxd5 14. Bb5+ Bd7 15. Bxd7+ Qxd7 $11) (13. Rxf7 $1 $14 Bxe5 14. Rf1 (14. Nxd5 cxd5 15. Bg5 Kxf7 $11)) 13... e6 {[%emt 0:05:02]} 14. Re1 {[%emt 0:03:01]} O-O {[%emt 0:03:35]} 15. Na4 {[%emt 0:06:02]} Nb6 {[%emt 0:10:40]} 16. Bb3 {[%emt 0:05:29]} Nxa4 {[%emt 0:02:28]} (16... c5 {feels hotter.} 17. Bg5 Bb7 18. c3 h6) 17. Bxa4 {[%emt 0:00:08]} Rd8 {[%emt 0:04:53]} 18. c4 {[%emt 0:06:26] Against Rd5} c5 {[%emt 0:04:39]} 19. Bg5 {[%emt 0:02:11]} Rd4 {[%emt 0:02:10]} 20. Rad1 {[%emt 0:02:15]} Ba6 {[%emt 0:04:08]} 21. Rxd4 {[%emt 0:02:45]} cxd4 {[%emt 0:00:02]} 22. Qe4 {[%emt 0:02:54]} (22. b3 $1 $15) 22... Rb8 $17 {[%emt 0:18:05]} 23. Qxd4 {[%emt 0:24:42]} (23. b3 $17) 23... Qa5 $19 {[%emt 0:01:09]} ({And not} 23... Qxc4 24. Qxc4 Bxc4 25. b3 $15) 24. Qd1 {[%emt 0:02:52]} Rxb2 {[%emt 0:03:01] Threatens to win with ...Bb7.} 25. Bc1 {[%emt 0:07:53]} (25. Bb3 $142) 25... Rb8 {[%emt 0:02:29]} ({Better is} 25... Rxa2 $19 26. Bb3 Rf2) 26. Bd2 {[%emt 0:01:30]} Qc7 {[%emt 0:01:08]} 27. Be3 {[%emt 0:01:16]} (27. Bb3 $142) 27... Bxe5 {[%emt 0:04:57]} 28. Bxa7 {[%emt 0:00:23]} Qxa7 {[%emt 0:00:43]} 29. Rxe5 {[%emt 0:00:06]} Bxc4 {[%emt 0:00:08][%cal Oa7a4] aiming for ...Qxa4!} 30. Bb3 {[%emt 0:01:56]} Bxb3 {[%emt 0:00:41]} 31. axb3 {[%emt 0:00:05]} Rxb3 {[%emt 0:00:19][%mdl 4096] Endgame KQR-KQR} 32. h3 $2 {[%emt 0:01:19]} (32. Re1 Rb2 33. Qf3) 32... Qb6 {[%emt 0:01:27]} 33. Re1 {[%emt 0:00:51]} Rb2 {[%emt 0:01:31]} 34. Qf3 $2 {[%emt 0:02:16]} (34. Rf1) 34... Rb1 {[%emt 0:03:00]} 35. Qa8+ {[%emt 0:00:55]} Kg7 {[%emt 0:00:05]} 36. Rxb1 {[%emt 0:00:11]} Qxb1+ {[%emt 0:00:05] KQ-KQ} 37. Kh2 {[%emt 0:00:03]} Qb2 {[%emt 0:00:15] Hoping for ...e5.} 38. Qd8 {[%emt 0:00:34]} e5 {[%emt 0:00:38][%cal Be6e5,Be5e4][%mdl 32]} 39. Qe7 {[%emt 0:00:33]} h5 {[%emt 0:00:30]} 40. Kg3 {[%emt 0:00:35]} Qd4 {[%emt 0:01:37][%csl Ge5][%cal Rd4f4]} 41. Kf3 {[%emt 0:30:15]} Qf4+ {[%emt 0:32:07]} (41... e4+ $142 42. Qxe4 Qxe4+ 43. Kxe4 Kf6 44. g3 Kg5 45. Kf3 f6 46. h4+ Kf5 47. g4+ hxg4+ 48. Kg3 Ke4 49. Kh2 Kf3 50. h5 gxh5 51. Kg1 g3 52. Kf1 g2+ 53. Ke1 Ke3 54. Kd1 Kd3 55. Kc1 g1=Q+ 56. Kb2 Qb6+ 57. Ka3 Kc3 58. Ka4 Qb4#) 42. Ke2 {[%emt 0:00:07]} e4 {[%emt 0:01:23][%cal Oe4e3]} 43. Qb4 {[%emt 0:00:39]} Qe5 {[%emt 0:00:53]} 44. Kf2 {[%emt 0:01:27]} Kf6 {[%emt 0:07:36]} (44... e3+ $142 45. Ke2 Qg3 46. Qd4+ Kh6 47. Qh8+ Kg5 48. Qd8+ f6 49. h4+ Qxh4 50. Kxe3 Qg3+ 51. Kd4 Qxg2 52. Qa5+ Kg4 53. Qa1 h4 54. Kc5 Qf2+ 55. Kd6 h3 56. Qd1+ Qf3 57. Qc2 Qf4+ 58. Kc6 f5 59. Kb5 h2 60. Qg2+ Qg3 61. Qc6 g5 62. Qh6 Qh3 63. Qg7 Qf3 64. Qd4+ f4 65. Qd7+ Kg3 66. Qf5 Qb7+ 67. Kc5 h1=Q 68. Qxg5+ Kf3 69. Qd5+ Qxd5+ 70. Kxd5 Kg4+ 71. Kc5 f3 72. Kd5 f2+ 73. Ke5 f1=Q 74. Kd4 Qc6 75. Ke3 Qc5+ 76. Ke4 Qff5#) 45. Qb6+ {[%emt 0:02:07]} Kg7 {[%emt 0:02:32]} (45... Kg5 $19 46. Kg1 e3 47. Qd8+ f6) 46. Qb4 $1 {[%emt 0:00:22]} Qd5 {[%emt 0:02:25]} (46... e3+ $142 47. Ke2 Qg3 48. Qd4+ Kg8 49. Qxe3 Qxg2+ 50. Ke1 Qd5 51. Kf2 Qe6 52. Qg3 Kg7 53. Kg1 f6 54. Qf3 Kh6 55. Qa3 g5 56. Kf2 g4 57. h4 Qf5+ 58. Kg1 Qb1+ 59. Kg2 Qe4+ 60. Kf2 Qd4+ 61. Kg2 Qd2+ 62. Kg3 Qe1+ 63. Kg2 Qe4+ 64. Kg3 Qe1+ 65. Kg2 Qe2+ 66. Kg1 Kg6 67. Qf8 Kf5 68. Qd6 Qe3+ 69. Kg2 Qe4+ 70. Kg1 Qe3+ 71. Kg2 Qe2+ 72. Kg1 Qe3+) 47. Qc3+ {[%emt 0:00:00]} Kg8 {[%emt 0:00:00] ...Kh7 is the strong threat.} 48. Qc8+ {[%emt 0:00:00] [#]} Kh7 $1 {[%emt 0:00:00] ( -> ...Qd2+)} 49. Qc7 {[%emt 0:00:00]} Qd4+ {[%emt 0:00:00]} 50. Ke2 {[%emt 0:00:00]} Kg7 {[%emt 0:00:00]} 51. Qc1 {[%emt 0:00:00]} Qd3+ {[%emt 0:00:00]} 52. Kf2 {[%emt 0:00:00]} Qd4+ {[%emt 0:00:00]} 53. Ke2 $1 {[%emt 0:00:00]} Qd3+ {[%emt 0:00:00]} 54. Kf2 {[%emt 0:00:00]} e3+ {[%emt 0:00:00] Black mates.} 55. Qxe3 {[%emt 0:00:00]} Qxe3+ {[%emt 0:00:00]} 56. Kxe3 {[%emt 0:00:00] K3P-KPP} Kf6 {[%emt 0:00:00]} 57. h4 {[%emt 0:00:00]} Ke5 {[%emt 0:00:00]} 58. g3 {[%emt 0:00:00]} Kf5 {[%emt 0:00:00]} 59. Kf3 {[%emt 0:00:00]} f6 {[%emt 0:00:00]} 60. Kf2 {[%emt 0:00:00]} Kg4 {[%emt 0:00:00]} 61. Kg2 {[%emt 0:00:00]} f5 {[%emt 0:00:00]} 62. Kh2 {[%emt 0:00:00]} f4 {[%emt 0:00:00]} 63. gxf4 {[%emt 0:00:00]} Kxf4 {[%emt 0:00:00]} 64. Kh3 {[%emt 0:00:00]} Kf3 {[%emt 0:00:00]} 65. Kh2 {[%emt 0:00:00]} Kg4 {[%emt 0:00:00] Weighted Error Value: White=0.93/Black=0.29 (precise)} 0-1

[Event "Germany Countries-chT Youth 2022"]
[Site "Wiesbaden"]
[Date "2022.10.03"]
[Round "6"]
[White "Hagner, Bennet"]
[Black "Huber, Benedikt"]
[Result "1-0"]
[ECO "C85"]
[WhiteElo "2321"]
[BlackElo "2299"]
[Annotator "TA"]
[PlyCount "53"]
[EventDate "2022.09.28"]
[EventType "team-tourn"]
[EventRounds "7"]
[EventCountry "GER"]
[SourceTitle "playchess.com"]
[Source "ChessBase"]
[SourceQuality "1"]
[TimeControl "40/5400+30:1800+30"]

{[%evp 14,53,18,12,10,0,0,0,0,0,0,0,0,0,0,0,8,0,11,10,30,22,27,29,83,37,42,42,112,88,63,82,116,106,181,181,228,226,239,249,5397,2864]} 1. e4 {[%emt 0:00:02]} e5 {[%emt 0:00:06]} 2. Nf3 {[%emt 0:00:04]} Nc6 {[%emt 0:00:10]} 3. Bb5 {[%emt 0:00:05]} a6 {[%emt 0:00:06]} 4. Ba4 {[%emt 0:00:04]} Nf6 {[%emt 0:00:09]} 5. O-O {[%emt 0:00:08]} Be7 {[%emt 0:00:08]} 6. Bxc6 {[%emt 0:00:08]} dxc6 {[%emt 0:00:07]} 7. d3 {[%emt 0:00:08]} Bd6 {[%emt 0:00:13][%cal Be7d6,Bd6e5,Be5d4][%mdl 32]} 8. Nbd2 {[%emt 0:01:12]} Be6 {[%emt 0:00:18] C85: Closed Ruy Lopez: Deferred Exchange Variation.} 9. d4 {[%emt 0:00:27]} Nd7 {[%emt 0:02:28]} 10. dxe5 {[%emt 0:00:07]} Nxe5 {[%emt 0:00:28] The position is equal.} 11. Nxe5 {[%emt 0:00:09]} Bxe5 {[%emt 0:00:06]} 12. f4 {[%emt 0:00:07][%cal Bf2f4,Bf4f5][%mdl 32]} Bd4+ {[%emt 0:08:01]} 13. Kh1 {[%emt 0:00:02]} f6 {[%emt 0:00:13]} 14. c3 {[%emt 0:01:02] [#]} Be3 $146 {[%emt 0:00:53]} ({Predecessor:} 14... Bb6 15. f5 Bf7 16. e5 fxe5 17. Qg4 Qd5 18. Ne4 O-O-O 19. Bg5 h5 20. Qf3 Rde8 {1-0 (47) Severins,J (2208)-Vroom,G (2135) ICCF email 2018}) 15. Qe2 {[%emt 0:10:50] Prevents Qd3.} Bxd2 {[%emt 0:00:18]} 16. Bxd2 {[%emt 0:00:05]} O-O {[%emt 0:04:08]} 17. f5 {[%emt 0:01:27]} Bf7 {[%emt 0:03:08]} 18. Bf4 {[%emt 0:11:51]} Qe7 {[%emt 0:12:03] [#]} (18... Re8 $11) 19. a3 {[%emt 0:15:42]} ({Better is} 19. b3 $1 $16) 19... Rfe8 {[%emt 0:25:12]} 20. Rae1 {[%emt 0:00:59]} Bd5 {[%emt 0:01:55]} 21. Rf3 {[%emt 0:11:44][%cal Bf1f3,Bf3e3,Be3h3][%mdl 32]} Qf7 {[%emt 0:02:47]} (21... Bxe4 $2 22. Re3 $18) 22. Re3 {[%emt 0:00:49] White is more active.} Bc4 {[%emt 0:00:09]} 23. Qg4 {[%emt 0:00:51]} Kh8 {[%emt 0:21:36]} (23... h5 $16 24. Qg3 Red8) 24. e5 $18 {[%emt 0:04:22][%cal Be4e5,Be5e6][%mdl 32]} b5 {[%emt 0:06:54]} (24... Rac8 {was called for.} 25. e6 Qg8) 25. e6 {[%emt 0:02:47]} Qe7 {[%emt 0:00:28]} 26. Rh3 {[%emt 0:03:07] [#] White threatens Qg6 and mate.} Rad8 $2 {[%emt 0:02:25]} (26... Qf8 27. Bxc7 Qg8) 27. Qg6 {[%emt 0:01:52] Weighted Error Value: White=0.05 (flawless) /Black=0.20 (precise)} 1-0

[Event "Germany Countries-chT Youth 2022"]
[Site "Wiesbaden"]
[Date "2022.10.03"]
[Round "6"]
[White "Pubantz, Jan"]
[Black "Sidletskyi, Ivan"]
[Result "1-0"]
[ECO "E36"]
[WhiteElo "2273"]
[BlackElo "2184"]
[Annotator "TA"]
[PlyCount "85"]
[EventDate "2022.09.28"]
[EventType "team-tourn"]
[EventRounds "7"]
[EventCountry "GER"]
[SourceTitle "playchess.com"]
[Source "ChessBase"]
[SourceQuality "1"]
[TimeControl "40/5400+30:1800+30"]

{[%evp 15,85,0,0,0,0,0,10,0,1,0,0,0,0,0,0,0,0,5,29,33,18,21,105,104,92,106,137,64,54,31,79,79,86,84,86,69,79,79,191,191,193,194,188,180,191,191,233,220,246,240,240,231,233,231,278,280,273,268,367,361,351,360,333,346,330,327,350,338,29979,29980,29980,29981]} 1. d4 {[%emt 0:00:02]} Nf6 {[%emt 0:01:29]} 2. c4 {[%emt 0:00:13]} e6 {[%emt 0:02:07]} 3. Nc3 {[%emt 0:00:56]} Bb4 {[%emt 0:00:37]} 4. Qc2 {[%emt 0:00:11]} d5 {[%emt 0:01:00]} 5. a3 {[%emt 0:00:18]} Bxc3+ {[%emt 0:01:15]} 6. Qxc3 {[%emt 0:00:02]} O-O {[%emt 0:00:31]} 7. Nf3 {[%emt 0:00:16]} dxc4 {[%emt 0:01:34]} 8. Qxc4 {[%emt 0:00:18]} b6 {[%emt 0:01:02][%cal Bb7b6,Bb6c5,Bc5c4][%mdl 32]} 9. Bg5 {[%emt 0:00:03] E36: Nimzo-Indian: Classical: 4...d5 5 a3.} Ba6 {[%emt 0:03:02]} 10. Qa4 {[%emt 0:00:13]} c5 {[%emt 0:05:57]} 11. dxc5 {[%emt 0:00:38] The position is equal.} bxc5 {[%emt 0:00:19]} 12. Rc1 {[%emt 0:01:57]} Qb6 {[%emt 0:02:57]} 13. Bxf6 {[%emt 0:00:46]} gxf6 {[%emt 0:00:47]} 14. Rc2 {[%emt 0:00:17]} c4 {[%emt 0:11:57] Hoping for ...Nc6.} 15. e3 {[%emt 0:08:47]} Bb5 {[%emt 0:05:44]} 16. Qb4 {[%emt 0:00:17]} Nc6 {[%emt 0:06:47]} 17. Qc3 {[%emt 0:03:01]} (17. Qd6 $2 Rfd8 18. Qg3+ Kf8 19. Bxc4 (19. Be2 $2 Ba4 $19) 19... Qa5+ 20. Ke2 Bxc4+ 21. Rxc4 Qa6 $19) 17... Qa5 {[%emt 0:03:38] [#]} 18. Nd2 $146 {[%emt 0:06:11]} (18. Bxc4 {seems wilder.} Bxc4 19. b4 Qf5 20. Qxc4 Rac8 21. e4) ({Predecessor:} 18. Bxc4 Bxc4 19. b4 Qf5 20. Qxc4 Rac8 21. e4 Qg4 22. h3 Ne5 23. hxg4 Nxc4 24. a4 {½-½ (90) Rajlich,I (2441)-Gajek,R (2203) Warsaw 2012}) 18... Ba4 {[%emt 0:15:13]} (18... Rfd8 $11 {keeps the balance.}) 19. Nxc4 $16 {[%emt 0:13:03]} Qxc3+ {[%emt 0:01:52]} 20. Rxc3 {[%emt 0:01:28]} Rab8 {[%emt 0:01:24] Inhibits b3.} 21. Bd3 {[%emt 0:04:46]} (21. b4 $1 $16) 21... Rfd8 $14 {[%emt 0:03:26]} 22. f4 {[%emt 0:31:11] Prevents Ne5.} Bb5 {[%emt 0:05:11]} (22... Ne7 $14) 23. b3 $16 {[%emt 0:04:04][%cal Bb2b3,Bb3b4][%mdl 32] White stays focused until the end.} Ne7 {[%emt 0:06:15]} 24. Ke2 {[%emt 0:02:51]} Nd5 {[%emt 0:03:14] [#]} 25. Rc2 {[%emt 0:00:24]} a5 {[%emt 0:01:09]} 26. Rd1 {[%emt 0:02:02]} a4 {[%emt 0:02:32]} (26... Rbc8 $16) 27. b4 $18 {[%emt 0:00:22]} Rbc8 {[%emt 0:00:53][%cal Od5b6] [#]} 28. Rdc1 $1 {[%emt 0:01:22][%cal Bd1c1,Bc1c2,Bc2c5][%mdl 32]} Kf8 {[%emt 0:06:55]} 29. Nb2 {[%emt 0:01:18]} (29. Bxh7 f5 30. Kf3 Nf6 31. Bxf5 exf5 $17) 29... Rxc2+ {[%emt 0:00:22]} 30. Rxc2 {[%emt 0:00:03]} Bd7 {[%emt 0:00:15]} 31. Rc5 {[%emt 0:03:56]} (31. Bxh7 f5 $15) 31... Ke7 {[%emt 0:00:28]} 32. g3 {[%emt 0:02:01]} ({But not} 32. Bxh7 Rh8) 32... f5 {[%emt 0:01:46]} 33. e4 {[%emt 0:03:18]} fxe4 {[%emt 0:00:11]} 34. Bxe4 {[%emt 0:00:04]} h5 {[%emt 0:01:35]} 35. Bxd5 {[%emt 0:02:41]} exd5 {[%emt 0:00:07][%mdl 4096] Endgame KRB-KRN} 36. Kd2 {[%emt 0:00:08]} Kd6 {[%emt 0:00:40]} 37. Ra5 {[%emt 0:01:11]} h4 {[%emt 0:00:43]} 38. Nxa4 {[%emt 0:02:12]} ({Not} 38. gxh4 Rh8 39. Ra6+ (39. Nxa4 Rxh4 40. Ra6+ Ke7 $18) 39... Ke7 40. Nxa4 Rxh4 $18) 38... hxg3 {[%emt 0:00:14]} 39. hxg3 {[%emt 0:00:31]} Rg8 {[%emt 0:00:16]} 40. Nc3 {[%emt 0:01:22]} Rxg3 {[%emt 0:00:49]} 41. Rxd5+ {[%emt 0:33:11]} Ke6 $2 {[%emt 0:31:25]} (41... Kc7 $18 42. a4 Rf3) 42. Re5+ {[%emt 0:02:19]} Kf6 {[%emt 0:02:49]} 43. Ne4+ {[%emt 0:00:08] Weighted Error Value: White=0.03 (flawless) /Black=0.35} 1-0